[Event "French Top 16-A 2024"]
[Site "Chartres"]
[Date "2024.06.05"]
[Round "7.1"]
[White "Karthik Venkataraman"]
[Black "Erigaisi Arjun"]
[Result "0-1"]
[ECO "C63"]
[WhiteElo "2606"]
[BlackElo "2762"]
[Annotator "TA"]
[PlyCount "88"]
[EventDate "2024.06.01"]
[EventType "team-tourn"]
[EventCountry "FRA"]
[SourceTitle "playchess.com"]
[Source "ChessBase"]
[SourceQuality "1"]
[TimeControl "40/5400+30:1800+30"]

{[%evp 15,88,16,14,-37,-25,-64,-18,-31,-41,-56,-47,-61,-54,-87,-91,-109,-22,-13,0,-47,-55,-41,-32,-35,-27,-43,-25,-60,-56,-55,-52,-80,-114,-224,-206,-191,-210,-193,-199,-206,-203,-245,-233,-239,-218,-243,-236,-235,-198,-208,-90,-184,-151,-209,-218,-291,-266,-267,-268,-457,-402,-473,-461,-453,-458,-470,-449,-1187,-658,-29976,-29977,-29977,-29978,-29978,-29979]} 1. e4 {[%emt 0:00:03]} e5 {[%emt 0:03:17]} 2. Nf3 {[%emt 0:00:08]} Nc6 {[%emt 0:00:19]} 3. Bb5 {[%emt 0:00:08]} f5 {[%emt 0:00:07]} 4. Nc3 {[%emt 0:01:25]} fxe4 {[%emt 0:00:09]} 5. Nxe4 {[%emt 0:00:04]} d5 {[%emt 0:03:31]} 6. Ng3 {[%emt 0:00:14]} Bg4 {[%emt 0:06:32]} 7. h3 {[%emt 0:00:35]} Bxf3 {[%emt 0:00:07]} 8. Qxf3 {[%emt 0:00:04]} Qd6 $1 {[%emt 0:03:51]} 9. c4 {[%emt 0:05:41]} ({Better is} 9. O-O $11) 9... O-O-O $1 $15 {[%emt 0:03:36]} 10. Nf5 {[%emt 0:33:33] Prevents Nd4.} Qc5 {[%emt 0:01:22]} (10... Qf6 $1 $15 11. cxd5 Nb4) 11. Bxc6 {[%emt 0:00:10] The position is equal.} Qxc6 {[%emt 0:00:15]} 12. Ne3 {[%emt 0:05:44][%cal Rc4d5]} Nf6 {[%emt 0:01:38]} (12... dxc4 $6 13. Qxc6 bxc6 14. Nxc4 $11) (12... Ne7 $5 13. cxd5 Nxd5 $15) 13. cxd5 {[%emt 0:01:23]} Nxd5 {[%emt 0:02:14]} 14. O-O {[%emt 0:07:14]} Bc5 {[%emt 0:00:41]} 15. Nc4 {[%emt 0:04:57]} Rhf8 {[%emt 0:08:01]} (15... Rhe8 $17 16. d3 Nb4 17. Qxc6 Nxc6) 16. Qg4+ $1 $11 {[%emt 0:00:41]} Kb8 {[%emt 0:00:12] Hoping for ...Rf4.} 17. d3 {[%emt 0:02:42]} (17. Nxe5 $11 {is superior.} Qe8 18. d4) 17... Bd4 {[%emt 0:13:30]} 18. Bg5 {[%emt 0:02:09]} Rde8 $36 {[%emt 0:50:08][%mdl 2048] Black is more active.} 19. Qe4 {[%emt 0:01:33] Dodges Qg6} Nb4 {[%emt 0:00:00]} 20. Qxc6 {[%emt 0:03:42]} Nxc6 {[%emt 0:00:00][%cal Bb4c6,Bc6b4,Bb4c2][%mdl 32]} 21. Be3 {[%emt 0:01:37]} Nb4 {[%emt 0:00:00]} 22. Rfd1 $1 {[%emt 0:06:48]} b5 {[%emt 0:00:00]} 23. Na5 {[%emt 0:21:25]} Nc2 {[%emt 0:00:00] Black is much more active.} (23... Bxb2 $2 24. Rab1 Bc3 25. Bc5 Nxa2 (25... Rf4 $2 26. g3 $18) 26. Rxb5+ Kc8 27. Bxf8 (27. Bxa7 Kd7 $16) 27... Rxf8 28. Nc6 $18) 24. Nc6+ {[%emt 0:00:00]} (24. Bxd4 $17 exd4 (24... Nxd4 25. Rd2 $15) 25. Rab1) 24... Kb7 $19 {[%emt 0:00:00]} 25. Nxd4 {[%emt 0:00:00]} (25. Bxd4 $2 exd4 (25... Nxd4 26. Nxd4 exd4 27. Kf1 $15) (25... Kxc6 26. Rac1 $11) 26. Na5+ Kb6 $19) 25... exd4 {[%emt 0:00:00]} (25... Nxd4 26. Kf1 $15) 26. Rac1 {[%emt 0:00:00]} Nxe3 {[%emt 0:00:00]} 27. fxe3 {[%emt 0:00:00]} Rxe3 {[%emt 0:00:00][%mdl 4096] Endgame. KRR-KRR} 28. Rd2 {[%emt 0:00:00]} c6 {[%emt 0:00:00]} 29. a4 {[%emt 0:00:00]} a6 {[%emt 0:00:00]} (29... bxa4 30. Ra1) 30. axb5 {[%emt 0:00:00]} axb5 {[%emt 0:00:00]} 31. b4 {[%emt 0:00:15]} h5 {[%emt 0:00:00]} 32. Kh2 {[%emt 0:01:07]} g5 {[%emt 0:00:00]} (32... g6 $19 {is more deadly. Strongly threatening ...Ra8.} 33. Rdc2 Rc8 (33... Rxd3 34. Rxc6 Rc3 35. R1xc3 $11) (33... Rf6 $2 34. Rd1 $19)) 33. Rdc2 {[%emt 0:01:02]} (33. Rc5 $17) 33... Rf6 {[%emt 0:00:00]} (33... Rxd3 34. Rxc6 Rc3 35. R6xc3 dxc3 36. Rxc3 $16) 34. Rd1 {[%emt 0:00:58]} (34. Rd2 $17 {was called for.}) 34... g4 {[%emt 0:00:00]} 35. h4 {[%emt 0:00:07]} Rfe6 {[%emt 0:00:00]} 36. Rc5 {[%emt 0:00:29]} R6e5 {[%emt 0:00:00] ...Rxc5 would now be deadly.} 37. Rdc1 {[%emt 0:00:29]} (37. Rcc1 {might work better.}) 37... Rxc5 {[%emt 0:00:00]} 38. Rxc5 {[%emt 0:00:02]} Rxd3 {[%emt 0:00:00] Threatens to win with ...Rc3.} 39. Rxh5 {[%emt 0:00:03] KR-KR} Rc3 {[%emt 0:00:00]} 40. Rh7+ {[%emt 0:01:12] [#]} Kc8 $1 {[%emt 0:00:00]} 41. h5 {[%emt 0:31:54]} (41. Ra7 $142 c5 (41... d3 42. Ra2 $17) 42. bxc5) 41... d3 {[%emt 0:15:03] ( -> ...d2)} 42. h6 {[%emt 0:01:01] [#]} g3+ $1 {[%emt 0:00:39][%mdl 512] Black mates.} 43. Kh3 {[%emt 0:00:05]} Rc1 {[%emt 0:00:04]} (43... d2 $2 44. Rh8+ Kd7 45. h7 $19) 44. Rh8+ {[%emt 0:00:00]} Kd7 {[%emt 0:00:00] Weighted Error Value: White=0.52/Black=0.24 (precise) .  Mistake:       	White=6     	Black=3      Inaccurate:     	White=6     	Black=1      OK:         	White=4     	Black=10     Best:        	White=3     	Black=2      Strong:       	White=2     	Black=2} 0-1

[Event "French Top 16-A 2024"]
[Site "Chartres"]
[Date "2024.06.05"]
[Round "7.1"]
[White "Travadon, Loic"]
[Black "Alonso Rosell, Alvar"]
[Result "1/2-1/2"]
[ECO "B10"]
[WhiteElo "2446"]
[BlackElo "2556"]
[Annotator "TA"]
[PlyCount "27"]
[EventDate "2024.06.01"]
[EventType "team-tourn"]
[EventCountry "FRA"]
[SourceTitle "playchess.com"]
[Source "ChessBase"]
[SourceQuality "1"]
[TimeControl "40/5400+30:1800+30"]

{[%evp 9,27,13,19,2,0,-15,-6,-18,-18,-26,-12,-18,0,-51,0,0,65,63,81,58]} 1. e4 {[%emt 0:00:03]} c6 {[%emt 0:32:54]} 2. Nf3 {[%emt 0:00:07]} d5 {[%emt 0:00:03]} 3. d3 {[%emt 0:00:05]} Qc7 {[%emt 0:00:04]} 4. Nbd2 {[%emt 0:00:06]} Bg4 {[%emt 0:04:44][%cal Bc8g4,Bg4h5,Bh5g6][%mdl 32]} 5. h3 {[%emt 0:01:18]} Bh5 {[%emt 0:00:38]} 6. g4 {[%emt 0:01:40]} Bg6 {[%emt 0:00:27]} 7. h4 {[%emt 0:01:11] [#] h5 is the strong threat.} h5 {[%emt 0:04:04]} 8. g5 {[%emt 0:00:06] The position is equal.} Nd7 {[%emt 0:08:49]} 9. Qe2 {[%emt 0:00:40]} e6 {[%emt 0:00:49]} 10. b3 {[%emt 0:02:51]} Ne7 {[%emt 0:00:27]} 11. Bh3 {[%emt 0:01:03]} (11. Bb2 $11) 11... dxe4 {[%emt 0:13:51]} (11... Bh7 $15) 12. dxe4 $11 {[%emt 0:00:08]} c5 {[%emt 0:00:18]} ({Better is} 12... Bh7 $11) 13. Bb2 $14 {[%emt 0:01:15]} Nc6 {[%emt 0:00:06] [#]} 14. Bf5 $1 {[%emt 0:05:05] Weighted Error Value: White=0.16 (very precise) /Black=0.18 (very precise) .  Mistake:       	White=1     	Black=2      OK:         	White=3     	Black=5} 1/2-1/2

[Event "French Top 16-A 2024"]
[Site "Chartres"]
[Date "2024.06.05"]
[Round "7.2"]
[White "Postny, Evgeny"]
[Black "Lupulescu, Constantin"]
[Result "0-1"]
[ECO "D39"]
[WhiteElo "2602"]
[BlackElo "2588"]
[Annotator "RC"]
[PlyCount "104"]
[EventDate "2024.06.01"]
[EventType "team-tourn"]
[EventCountry "FRA"]
[SourceTitle "playchess.com"]
[Source "ChessBase"]
[SourceQuality "1"]
[TimeControl "40/5400+30:1800+30"]

1. d4 {[%emt 0:00:04]} Nf6 {[%emt 0:00:05]} 2. c4 {[%emt 0:00:08]} e6 {[%emt 0:00:05]} 3. Nf3 {[%emt 0:00:17]} d5 {[%emt 0:00:05]} 4. Nc3 {[%emt 0:00:04]} dxc4 {[%emt 0:00:08]} 5. e4 {[%emt 0:00:25]} Bb4 {[%emt 0:00:09]} 6. Bg5 {[%emt 0:00:52]} h6 {[%emt 0:00:19]} 7. Bxf6 {[%emt 0:00:58]} Qxf6 {[%emt 0:00:14]} 8. Bxc4 {[%emt 0:00:29]} c5 {[%emt 0:00:26]} 9. O-O {[%emt 0:02:56]} cxd4 {[%emt 0:00:23]} 10. e5 {[%emt 0:00:23]} Qd8 {[%emt 0:00:13]} 11. Ne4 {[%emt 0:00:32]} O-O {[%emt 0:00:35]} 12. Qe2 {[%emt 0:01:48]} Be7 {[%emt 0:00:41]} 13. Rfd1 {[%emt 0:05:43]} Qa5 {[%emt 0:07:38]} 14. a3 {[%emt 0:03:18]} Rd8 {[%emt 0:11:40]} 15. Ng3 {[%emt 0:05:17]} Bd7 {[%emt 0:10:30]} 16. b4 {[%emt 0:19:42]} Qc7 {[%emt 0:12:57]} 17. Rac1 {[%emt 0:09:13]} Bc6 {[%emt 0:03:11]} 18. Nd2 {[%emt 0:22:07]} a6 {[%emt 0:04:42]} 19. Bd3 {[%emt 0:00:23]} Nd7 {[%emt 0:04:36]} 20. f4 {[%emt 0:00:06]} Rac8 {[%emt 0:05:43]} 21. Re1 {[%emt 0:04:05]} Qb8 {[%emt 0:02:31]} 22. Nde4 {[%emt 0:07:24]} Nb6 {[%emt 0:12:41]} 23. Nh5 {[%emt 0:05:54]} Bxe4 {[%emt 0:00:48]} 24. Bxe4 {[%emt 0:00:06]} Rxc1 {[%emt 0:06:55]} 25. Rxc1 {[%emt 0:00:05]} Kh8 {[%emt 0:00:34]} 26. Rd1 {[%emt 0:02:47]} g6 {[%emt 0:03:44]} 27. Ng3 {[%emt 0:00:18]} Nd5 {[%emt 0:01:45]} 28. Qf3 {[%emt 0:00:21]} Nc3 {[%emt 0:01:58]} 29. Rd3 {[%emt 0:00:49]} Nxe4 {[%emt 0:02:39]} 30. Nxe4 {[%emt 0:01:07]} Qc7 {[%emt 0:00:47]} 31. h3 {[%emt 0:00:34]} Kg7 {[%emt 0:01:36]} 32. Kh2 {[%emt 0:00:25]} h5 {[%emt 0:06:12]} 33. Nd2 {[%emt 0:02:27]} b6 {[%emt 0:00:00]} 34. Qe4 {[%emt 0:01:31]} a5 {[%emt 0:00:00]} 35. bxa5 {[%emt 0:01:25]} bxa5 {[%emt 0:00:00]} 36. Nf3 {[%emt 0:00:04]} Qc4 {[%emt 0:00:00]} 37. h4 {[%emt 0:03:24]} a4 {[%emt 0:00:29]} 38. Ng5 {[%emt 0:00:45]} Qd5 {[%emt 0:00:54]} 39. Qe2 {[%emt 0:01:02]} Bxg5 {[%emt 0:00:49]} 40. hxg5 {[%emt 0:00:04]} Rc8 {[%emt 0:00:53]} 41. Qb2 {[%emt 0:30:53]} Rc4 {[%emt 0:02:17]} 42. Qa2 {[%emt 0:00:00]} Qc6 {[%emt 0:03:17]} 43. Qf2 {[%emt 0:00:00]} Rc2 {[%emt 0:04:45]} 44. Qf3 {[%emt 0:00:00]} Qxf3 {[%emt 0:01:28]} 45. Rxf3 {[%emt 0:00:00]} Rc3 {[%emt 0:00:10]} 46. Rf2 {[%emt 0:00:00]} Rxa3 {[%emt 0:00:36]} 47. Rd2 {[%emt 0:00:00]} d3 {[%emt 0:00:34]} 48. Kg3 {[%emt 0:00:00]} Rb3 {[%emt 0:02:27]} 49. Kf3 {[%emt 0:00:00]} a3 {[%emt 0:00:28]} 50. Ke4 {[%emt 0:00:00]} Rb2 {[%emt 0:00:22]} 51. Rxd3 {[%emt 0:00:00]} a2 {[%emt 0:00:23]} 52. Ra3 {[%emt 0:00:00]} Rb4+ {[%emt 0:01:17]} 0-1

[Event "French Top 16-A 2024"]
[Site "Chartres"]
[Date "2024.06.05"]
[Round "7.2"]
[White "Bosc, Seraphina"]
[Black "Emmenecker, Pierre-Antoine"]
[Result "0-1"]
[ECO "C55"]
[WhiteElo "2215"]
[BlackElo "2306"]
[Annotator "RC"]
[PlyCount "81"]
[EventDate "2024.06.01"]
[EventType "team-tourn"]
[EventCountry "FRA"]
[SourceTitle "playchess.com"]
[Source "ChessBase"]
[SourceQuality "1"]
[TimeControl "40/5400+30:1800+30"]

1. e4 {[%emt 0:00:05]} e5 {[%emt 0:00:07]} 2. Nf3 {[%emt 0:00:41]} Nc6 {[%emt 0:00:08]} 3. Bc4 {[%emt 0:00:54]} Nf6 {[%emt 0:00:07]} 4. d3 {[%emt 0:00:04]} h6 {[%emt 0:00:07]} 5. c3 {[%emt 0:02:22]} d6 {[%emt 0:00:19]} 6. a4 {[%emt 0:01:13]} g5 {[%emt 0:03:54]} 7. O-O {[%emt 0:08:05]} Bg7 {[%emt 0:05:05]} 8. Re1 {[%emt 0:07:26]} O-O {[%emt 0:00:46]} 9. Na3 {[%emt 0:04:47]} d5 {[%emt 0:12:13]} 10. exd5 {[%emt 0:00:56]} Nxd5 {[%emt 0:00:10]} 11. Bb5 {[%emt 0:11:30]} g4 {[%emt 0:15:50]} 12. Bxc6 {[%emt 0:05:32]} gxf3 {[%emt 0:00:26]} 13. Bxd5 {[%emt 0:00:23]} Qxd5 {[%emt 0:00:38]} 14. Qxf3 {[%emt 0:00:07]} Qxf3 {[%emt 0:06:46]} 15. gxf3 {[%emt 0:00:38]} Bf5 {[%emt 0:11:08]} 16. f4 {[%emt 0:03:15]} Rfe8 {[%emt 0:03:57]} 17. fxe5 {[%emt 0:01:03]} Bxe5 {[%emt 0:06:34]} 18. Be3 {[%emt 0:05:58]} Kh7 {[%emt 0:02:42]} 19. f4 {[%emt 0:10:00]} Bf6 {[%emt 0:13:04]} 20. Bd4 {[%emt 0:24:10]} Rg8+ {[%emt 0:01:03]} 21. Kh1 {[%emt 0:01:04]} Bxd4 {[%emt 0:09:10]} 22. cxd4 {[%emt 0:00:14]} Be6 {[%emt 0:00:17]} 23. Rxe6 {[%emt 0:05:38]} fxe6 {[%emt 0:00:08]} 24. Nb5 {[%emt 0:00:56]} Rg7 {[%emt 0:00:24]} 25. Rg1 {[%emt 0:02:41]} Rxg1+ {[%emt 0:04:29]} 26. Kxg1 {[%emt 0:00:04]} Rd8 {[%emt 0:01:24]} 27. Nxc7 {[%emt 0:00:30]} Rxd4 {[%emt 0:00:17]} 28. Nxe6 {[%emt 0:00:06]} Rxd3 {[%emt 0:00:16]} 29. f5 {[%emt 0:00:39]} Rf3 {[%emt 0:01:45]} 30. Nd8 {[%emt 0:00:35]} b6 {[%emt 0:00:48]} 31. Nc6 {[%emt 0:00:13]} a6 {[%emt 0:00:20]} 32. a5 {[%emt 0:00:57]} bxa5 {[%emt 0:00:14]} 33. Nxa5 {[%emt 0:00:09]} Rxf5 {[%emt 0:00:06]} 34. Nc4 {[%emt 0:00:14]} Rf4 {[%emt 0:00:32]} 35. b3 {[%emt 0:01:43]} Rf3 {[%emt 0:00:11]} 36. Na5 {[%emt 0:00:13]} h5 {[%emt 0:00:44]} 37. Kg2 {[%emt 0:00:03]} Rc3 {[%emt 0:00:08]} 38. b4 {[%emt 0:00:48]} Kg6 {[%emt 0:00:50]} 39. Nb7 {[%emt 0:00:05]} Rc4 {[%emt 0:00:33]} 40. Nc5 {[%emt 0:00:05]} a5 {[%emt 0:00:23]} 41. Kf3 {[%emt 0:34:54]} 0-1

[Event "French Top 16-A 2024"]
[Site "Chartres"]
[Date "2024.06.05"]
[Round "7.3"]
[White "Parligras, Mircea-Emilian"]
[Black "Bailet, Pierre"]
[Result "1/2-1/2"]
[ECO "D12"]
[WhiteElo "2561"]
[BlackElo "2492"]
[Annotator "TA"]
[PlyCount "152"]
[EventDate "2024.06.01"]
[EventType "team-tourn"]
[EventCountry "FRA"]
[SourceTitle "playchess.com"]
[Source "ChessBase"]
[SourceQuality "1"]
[TimeControl "40/5400+30:1800+30"]

{[%evp 60,152,52,53,46,8,8,8,6,6,6,0,0,0,68,78,130,141,214,206,233,226,220,120,124,124,124,124,124,116,124,116,116,116,152,116,116,116,123,116,124,116,116,109,169,154,135,135,138,116,176,124,124,87,108,125,247,124,139,124,124,116,115,115,248,248,237,165,165,165,165,165,165,151,158,8,151,8,112,0,0,0,8,8,8,8,8,8,8,8,8,0,0,0,4141]} 1. d4 {[%emt 0:00:04]} d5 {[%emt 0:00:13]} 2. c4 {[%emt 0:00:07]} c6 {[%emt 0:00:10]} 3. Nf3 {[%emt 0:00:15]} Nf6 {[%emt 0:00:13]} 4. e3 {[%emt 0:00:12]} Bf5 {[%emt 0:00:12]} 5. Nc3 {[%emt 0:00:13]} e6 {[%emt 0:00:13]} 6. Nh4 {[%emt 0:00:05]} Bg6 {[%emt 0:00:09]} 7. Nxg6 {[%emt 0:00:29]} hxg6 {[%emt 0:00:09]} 8. Bd2 {[%emt 0:00:11]} Nbd7 {[%emt 0:00:32]} 9. Qc2 {[%emt 0:00:35]} a6 {[%emt 0:10:22]} 10. Be2 {[%emt 0:03:32]} dxc4 {[%emt 0:06:50]} 11. Bxc4 {[%emt 0:00:09]} Be7 {[%emt 0:05:14]} 12. Be2 {[%emt 0:06:14]} c5 {[%emt 0:05:46]} 13. dxc5 {[%emt 0:05:12]} Nxc5 {[%emt 0:01:10]} 14. O-O {[%emt 0:06:20]} Rc8 {[%emt 0:16:00]} 15. Rfd1 {[%emt 0:03:34]} b5 {[%emt 0:08:46]} 16. Rac1 {[%emt 0:04:37]} Qb6 {[%emt 0:01:14]} 17. Be1 {[%emt 0:11:54]} O-O {[%emt 0:02:06]} 18. Bf3 {[%emt 0:13:11]} Rfd8 {[%emt 0:02:03]} 19. Ne2 {[%emt 0:02:19]} e5 {[%emt 0:17:27]} 20. Nc3 {[%emt 0:09:31]} Qe6 {[%emt 0:01:03]} 21. a3 {[%emt 0:05:12]} e4 {[%emt 0:05:15]} 22. Be2 {[%emt 0:00:17]} Rxd1 {[%emt 0:03:52]} 23. Rxd1 {[%emt 0:01:11]} Na4 {[%emt 0:00:10]} 24. Qb1 {[%emt 0:00:41]} Nxc3 {[%emt 0:04:59]} 25. Bxc3 {[%emt 0:00:06]} Qb3 {[%emt 0:00:15]} 26. Rc1 {[%emt 0:05:38]} Nd5 {[%emt 0:00:57]} 27. Bd4 {[%emt 0:00:12]} Rxc1+ {[%emt 0:01:11]} 28. Qxc1 {[%emt 0:00:06]} Bf6 {[%emt 0:01:06]} 29. Bd1 {[%emt 0:13:15]} Qa2 {[%emt 0:01:46]} 30. Bxf6 {[%emt 0:02:00]} gxf6 {[%emt 0:01:18]} 31. Qc5 {[%emt 0:01:25]} f5 {[%emt 0:01:18]} 32. g3 {[%emt 0:00:12]} Nf6 {[%emt 0:01:29]} 33. Qd4 {[%emt 0:01:20]} Qe6 {[%emt 0:00:48]} 34. a4 {[%emt 0:01:28]} bxa4 {[%emt 0:00:16]} 35. Qxa4 {[%emt 0:00:19]} Qd6 {[%emt 0:02:23]} 36. Bb3 {[%emt 0:01:13]} Kg7 {[%emt 0:00:22]} (36... Nd7 $11) 37. Qc4 $14 {[%emt 0:00:33]} Qd7 {[%emt 0:00:59]} ({Better is} 37... Ng4) 38. Qxa6 $16 {[%emt 0:00:35]} Qd2 {[%emt 0:00:33]} (38... Ng4 $16 {was necessary.}) 39. Qb7 {[%emt 0:01:07]} Qxb2 {[%emt 0:00:26]} 40. Qxf7+ {[%emt 0:00:08]} Kh6 {[%emt 0:00:01]} 41. h3 {[%emt 0:34:02]} (41. Qf8+ $18 Kh7 42. Qf7+ Kh6 43. Qf8+ Kh7 44. Bc4) 41... Nh7 $16 {[%emt 0:31:12]} 42. Kg2 {[%emt 0:00:00]} Qg7 {[%emt 0:00:00]} 43. Qe8 {[%emt 0:00:00]} Qf6 {[%emt 0:00:00]} 44. Bd1 {[%emt 0:00:00]} Qd6 {[%emt 0:00:00]} 45. Be2 {[%emt 0:00:00]} Qd2 {[%emt 0:00:00]} 46. Bc4 {[%emt 0:00:00]} Qd1 {[%emt 0:00:00]} 47. Qe5 {[%emt 0:00:00]} Qf3+ {[%emt 0:00:00]} 48. Kg1 {[%emt 0:00:00]} Qd1+ {[%emt 0:00:00]} 49. Bf1 {[%emt 0:00:00]} Qd8 {[%emt 0:00:00]} 50. Kg2 {[%emt 0:00:00]} Qf6 {[%emt 0:00:00]} 51. Qf4+ {[%emt 0:00:00]} Qg5 {[%emt 0:00:00]} (51... g5 $16 {keeps fighting.} 52. Qc7 Kg6) 52. Qc7 $18 {[%emt 0:00:00]} Qf6 {[%emt 0:00:00]} 53. Bc4 {[%emt 0:00:00]} Qc3 {[%emt 0:00:00]} 54. Qc5 {[%emt 0:00:00]} Ng5 {[%emt 0:00:00]} (54... Qf6 $16 55. Qc7 Ng5) 55. Qf8+ {[%emt 0:00:00]} (55. Qd4 $18 Qxd4 56. exd4) 55... Qg7 $16 {[%emt 0:00:00]} 56. Qd8 {[%emt 0:00:00]} Nf3 {[%emt 0:00:00]} 57. Be2 {[%emt 0:00:00]} Ng5 {[%emt 0:01:01]} (57... Ne1+ $16 {was worth a try.} 58. Kf1 Qa1) 58. Qb8 {[%emt 0:00:00]} (58. g4 $1 $18) 58... Qf6 $16 {[%emt 0:00:29]} 59. Qf4 {[%emt 0:01:20]} Kg7 {[%emt 0:00:06]} 60. Qc7+ {[%emt 0:01:02]} Qf7 {[%emt 0:00:18]} 61. Qc5 {[%emt 0:00:43]} Qf8 {[%emt 0:00:26] [#]} (61... Ne6 $16 62. Qb5 Qe7) 62. Qxf8+ $1 $18 {[%emt 0:02:35]} Kxf8 {[%emt 0:00:02]} 63. h4 {[%emt 0:00:24]} Nf7 {[%emt 0:04:44]} 64. g4 {[%emt 0:00:33]} Ke7 {[%emt 0:01:24]} 65. g5 {[%emt 0:00:34]} Ne5 {[%emt 0:00:11]} 66. Kf1 {[%emt 0:00:14]} Kd6 {[%emt 0:01:00]} 67. Ke1 {[%emt 0:00:05]} (67. Kg1 $16) 67... Nc6 {[%emt 0:00:21]} (67... Ke6 $11) 68. Kd2 {[%emt 0:00:35]} (68. f3 $16) 68... Ke5 {[%emt 0:00:10] [#]} (68... Ne5 $11 {remains equal.}) 69. h5 {[%emt 0:01:59]} (69. f4+ $1 $16 exf3 70. Bxf3) 69... gxh5 $11 {[%emt 0:00:06]} 70. Bxh5 {[%emt 0:00:05]} Ne7 {[%emt 0:00:52]} 71. Bf7 {[%emt 0:00:14]} f4 {[%emt 0:00:40]} 72. g6 {[%emt 0:01:16]} fxe3+ {[%emt 0:00:29]} 73. Kxe3 {[%emt 0:00:17]} Nf5+ {[%emt 0:00:11]} 74. Kd2 {[%emt 0:00:08]} Kf6 {[%emt 0:00:21]} 75. Kc3 {[%emt 0:00:17]} e3 {[%emt 0:00:49]} 76. fxe3 {[%emt 0:00:45]} Ke5 $2 {[%emt 0:04:22][%mdl 8192]} (76... Nxe3 $11 77. g7 Kxg7) 1/2-1/2

[Event "French Top 16-A 2024"]
[Site "Chartres"]
[Date "2024.06.05"]
[Round "7.3"]
[White "Willems, Niels"]
[Black "Solakian-Van Eyll, Jerome"]
[Result "1-0"]
[ECO "A28"]
[WhiteElo "2329"]
[BlackElo "2247"]
[Annotator "RC"]
[PlyCount "64"]
[EventDate "2024.06.01"]
[EventType "team-tourn"]
[EventCountry "FRA"]
[SourceTitle "playchess.com"]
[Source "ChessBase"]
[SourceQuality "1"]
[TimeControl "40/5400+30:1800+30"]

1. c4 {[%emt 0:00:04]} e5 {[%emt 0:00:10]} 2. Nc3 {[%emt 0:00:08]} Bb4 {[%emt 0:00:17]} 3. Qc2 {[%emt 0:00:29]} Nf6 {[%emt 0:00:59]} 4. Nf3 {[%emt 0:00:16]} Qe7 {[%emt 0:01:16]} 5. e3 {[%emt 0:05:06]} Bxc3 {[%emt 0:01:24]} 6. Qxc3 {[%emt 0:08:12]} Nc6 {[%emt 0:00:47]} 7. Be2 {[%emt 0:01:00]} d5 {[%emt 0:02:44]} 8. d4 {[%emt 0:06:38]} exd4 {[%emt 0:26:10]} 9. Nxd4 {[%emt 0:00:44]} Nxd4 {[%emt 0:00:14]} 10. Qxd4 {[%emt 0:00:34]} c5 {[%emt 0:03:30]} 11. Qh4 {[%emt 0:04:23]} dxc4 {[%emt 0:00:27]} 12. Qxc4 {[%emt 0:00:54]} O-O {[%emt 0:01:11]} 13. O-O {[%emt 0:00:41]} Rd8 {[%emt 0:04:05]} 14. f3 {[%emt 0:07:22]} Be6 {[%emt 0:02:07]} 15. Qh4 {[%emt 0:09:30]} Nd5 {[%emt 0:02:41]} 16. Qxe7 {[%emt 0:04:22]} Nxe7 {[%emt 0:00:05]} 17. Rd1 {[%emt 0:11:22]} Rxd1+ {[%emt 0:05:15]} 18. Bxd1 {[%emt 0:00:23]} Rd8 {[%emt 0:00:06]} 19. Be2 {[%emt 0:01:22]} Nc6 {[%emt 0:02:50]} 20. b3 {[%emt 0:00:46]} Nb4 {[%emt 0:05:54]} 21. e4 {[%emt 0:01:40]} f6 {[%emt 0:09:32]} 22. h4 {[%emt 0:04:12]} b6 {[%emt 0:14:47]} 23. Bf4 {[%emt 0:00:45]} Kf7 {[%emt 0:00:26]} 24. Kf1 {[%emt 0:10:25]} Ke7 {[%emt 0:00:51]} 25. e5 {[%emt 0:07:06]} Bf5 {[%emt 0:07:17]} 26. exf6+ {[%emt 0:00:14]} gxf6 {[%emt 0:00:05]} 27. a3 {[%emt 0:01:44]} Nc2 {[%emt 0:00:58]} 28. Rc1 {[%emt 0:00:34]} Nd4 {[%emt 0:00:40]} 29. Bd1 {[%emt 0:03:01]} Be6 {[%emt 0:02:19]} 30. Rb1 {[%emt 0:08:13]} Bf5 {[%emt 0:00:43]} 31. Rc1 {[%emt 0:00:00]} Be6 {[%emt 0:00:06]} 32. Rb1 {[%emt 0:00:05]} Bf5 {[%emt 0:01:30]} 1-0